fUSD/lending_fUSD_20241223
["ID","MTS","AMOUNT","RATE_DAILY","PERIOD"]
[346396965,1734940238894,-500.0,0.00019178,2]
[346396967,1734940238903,-500.0,0.00019178,2]
[346396969,1734940238912,-500.0,0.00019178,2]
[346396970,1734940238922,-500.0,0.00019178,2]
[346396972,1734940238932,-500.0,0.00019178,2]
[346396974,1734940238942,-500.0,0.00019178,2]
[346396975,1734940238951,-500.0,0.00019178,2]
[346396977,1734940238960,-500.0,0.00019178,2]
[346396979,1734940238969,-500.0,0.00019178,2]
[346396981,1734940238978,-500.0,0.00019178,2]
[346396982,1734940238988,-500.0,0.00019178,2]
[346396984,1734940239181,-500.0,0.00019178,2]
[346396985,1734940239195,-500.0,0.00019178,2]
[346396986,1734940239205,-500.0,0.00019178,2]
[346396987,1734940239214,-373.04437311,0.00019178,2]
[346396988,1734940239224,-502.33145705,0.00019178,2]
[346396989,1734940239233,-500.0,0.00019178,2]
[346396990,1734940239243,-500.0,0.00019178,2]
[346396991,1734940239252,-500.0,0.00019178,2]
[346396992,1734940239262,-500.0,0.00019178,2]
[346396993,1734940239271,-500.0,0.00019178,2]
[346396994,1734940239280,-563.08554087,0.00019178,2]
[346396995,1734940239289,-500.0,0.00019178,2]
[346396996,1734940239299,-500.0,0.00019178,2]
[346396997,1734940239308,-500.0,0.00019178,2]
[346396998,1734940239318,-500.0,0.00019178,2]
[346396999,1734940239327,-500.0,0.00019178,2]
[346397000,1734940239338,-500.0,0.00019178,2]
[346397001,1734940239349,-500.0,0.00019178,2]
[346397002,1734940239358,-500.0,0.00019178,2]
[346397003,1734940239367,-513.22888101,0.00019178,2]
[346397004,1734940239376,-500.0,0.00019178,2]
[346397005,1734940239386,-500.0,0.00019178,2]
[346397006,1734940239395,-500.0,0.00019178,2]
[346397007,1734940239404,-500.0,0.00019178,2]
[346397008,1734940239413,-509.6439738,0.00019178,2]
[346397009,1734940239423,-500.0,0.00019178,2]
[346397010,1734940239432,-580.47388603,0.00019178,2]
[346397011,1734940239442,-500.0,0.00019178,2]
[346397012,1734940239451,-534.83918005,0.00019178,2]
[346397013,1734940239461,-500.0,0.00019178,2]
[346397014,1734940239471,-500.0,0.00019178,2]
[346397015,1734940239481,-500.0,0.00019178,2]
[346397016,1734940239490,-500.0,0.00019178,2]
[346397017,1734940239499,-500.0,0.00019178,2]
[346397018,1734940239512,-500.0,0.00019178,2]
[346397019,1734940239523,-1392.75,0.00019178,2]
[346397020,1734940239532,-500.0,0.00019178,2]
[346397021,1734940239542,-500.0,0.00019178,2]
[346397022,1734940239551,-500.0,0.00019178,2]
[346397023,1734940239562,-328.09051946,0.00019178,2]
[346397024,1734940239571,-500.0,0.00019178,2]
[346397025,1734940239580,-500.0,0.00019178,2]
[346397026,1734940239591,-500.0,0.00019178,2]
[346397027,1734940239602,-500.0,0.00019178,2]
[346397028,1734940239612,-500.0,0.00019178,2]
[346397029,1734940239623,-1123.15,0.00019178,2]
[346397030,1734940239632,-511.60526384,0.00019178,2]
[346397031,1734940239642,-500.0,0.00019178,2]
[346397032,1734940239652,-500.0,0.00019178,2]
[346397033,1734940239662,-585.88,0.00019178,2]
[346397034,1734940239673,-500.0,0.00019178,2]
[346397035,1734940239683,-500.0,0.00019178,2]
[346397036,1734940239692,-500.0,0.00019178,2]
[346397037,1734940239702,-500.0,0.00019178,2]
[346397038,1734940239712,-625.77,0.00019178,2]
[346397039,1734940239721,-500.0,0.00019178,2]
[346397040,1734940239731,-500.0,0.00019178,2]
[346397041,1734940239741,-503.43050768,0.00019178,2]
[346397042,1734940239751,-1058.83,0.00019178,2]
[346397043,1734940239763,-500.0,0.00019178,2]
[346397044,1734940239772,-500.0,0.00019178,2]
[346397045,1734940239782,-500.0,0.00019178,2]
[346397046,1734940239791,-500.0,0.00019178,2]
[346397047,1734940239800,-500.0,0.00019178,2]
[346397048,1734940239811,-500.0,0.00019178,2]
[346397049,1734940239820,-500.0,0.00019178,2]
[346397050,1734940239830,-500.0,0.00019178,2]
[346397051,1734940239839,-500.0,0.00019178,2]
[346397052,1734940239849,-500.0,0.00019178,2]
[346397053,1734940239858,-500.0,0.00019178,2]
[346397054,1734940239867,-500.0,0.00019178,2]
[346397055,1734940239877,-1255.62,0.00019178,2]
[346397056,1734940239887,-500.0,0.00019178,2]
[346397057,1734940239896,-506.17342337,0.00019178,2]
[346397058,1734940239906,-500.0,0.00019178,2]
[346397059,1734940239916,-543.70673813,0.00019178,2]
[346397060,1734940239926,-500.0,0.00019178,2]
[346397061,1734940239936,-500.0,0.00019178,2]
[346397062,1734940239945,-500.0,0.00019178,2]
[346397063,1734940239955,-500.0,0.00019178,2]
[346397064,1734940239964,-500.0,0.00019178,2]
[346397065,1734940239974,-500.0,0.00019178,2]
[346397066,1734940239984,-500.0,0.00019178,2]
[346397067,1734940239996,-502.67775138,0.00019178,2]
[346397068,1734940240006,-500.0,0.00019178,2]
[346397069,1734940240022,-500.0,0.00019178,2]
[346397070,1734940240032,-500.0,0.00019178,2]
[346397071,1734940240043,-1239.37,0.00019178,2]
[346397072,1734940240053,-500.0,0.00019178,2]
[346397073,1734940240063,-500.0,0.00019178,2]
[346397074,1734940240074,-597.07,0.00019178,2]
[346397075,1734940240084,-500.0,0.00019178,2]
[346397076,1734940240094,-777.32,0.00019178,2]
[346397077,1734940240105,-247.24,0.00019178,2]
[346397078,1734940240115,-500.0,0.00019178,2]
[346397079,1734940240125,-500.0,0.00019178,2]
[346397080,1734940240135,-500.0,0.00019178,2]
[346397081,1734940240144,-507.38985623,0.00019178,2]
[346397082,1734940240154,-500.0,0.00019178,2]
[346397083,1734940240166,-844.94,0.00019178,2]
[346397084,1734940240176,-501.47060633,0.00019178,2]
[346397085,1734940240187,-427.99488693,0.00019178,2]
[346397086,1734940240196,-500.0,0.00019178,2]
[346397087,1734940240206,-500.0,0.00019178,2]
[346397088,1734940240216,-500.0,0.00019178,2]
[346397089,1734940240226,-503.03599083,0.00019178,2]
[346397090,1734940240235,-500.0,0.00019178,2]
[346397091,1734940240245,-500.0,0.00019178,2]
[346397092,1734940240255,-500.0,0.00019178,2]
[346397093,1734940240269,-504.08915996,0.00019178,2]
[346397094,1734940240280,-500.0,0.00019178,2]
[346397095,1734940240290,-500.0,0.00019178,2]
[346397096,1734940240300,-622.98,0.00019178,2]
[346397097,1734940240310,-500.0,0.00019178,2]
[346397098,1734940240320,-500.0,0.00019178,2]
[346397099,1734940240330,-500.0,0.00019178,2]
[346397100,1734940240343,-500.0,0.00019178,2]
[346397101,1734940240352,-500.0,0.00019178,2]
[346397102,1734940240362,-500.0,0.00019178,2]
[346397103,1734940240372,-500.0,0.00019178,2]
[346397104,1734940240382,-500.0,0.00019178,2]
[346397105,1734940240392,-500.0,0.00019178,2]
[346397106,1734940240402,-500.0,0.00019178,2]
[346397107,1734940240411,-500.0,0.00019178,2]
[346397108,1734940240421,-500.0,0.00019178,2]
[346397109,1734940240431,-500.0,0.00019178,2]
[346397110,1734940240441,-500.0,0.00019178,2]
[346397111,1734940240450,-453.75,0.00019178,2]
[346397112,1734940240459,-500.0,0.00019178,2]
[346397113,1734940240469,-635.11,0.00019178,2]
[346397114,1734940240479,-500.0,0.00019178,2]
[346397115,1734940240488,-500.0,0.00019178,2]
[346397116,1734940240498,-500.0,0.00019178,2]
[346397117,1734940240507,-500.0,0.00019178,2]
[346397118,1734940240520,-500.0,0.00019178,2]
[346397119,1734940240530,-500.0,0.00019178,2]
[346397120,1734940240539,-500.0,0.00019178,2]
[346397121,1734940240549,-500.0,0.00019178,2]
[346397122,1734940240558,-500.0,0.00019178,2]
[346397123,1734940240568,-500.0,0.00019178,2]
[346397124,1734940240578,-500.0,0.00019178,2]
[346397125,1734940240589,-500.0,0.00019178,2]
[346397126,1734940240598,-724.41,0.00019178,2]
[346397127,1734940240607,-500.0,0.00019178,2]
[346397128,1734940240617,-500.0,0.00019178,2]
[346397129,1734940240627,-504.58573887,0.00019178,2]
[346397130,1734940240636,-821.25,0.00019178,2]
[346397131,1734940240646,-500.0,0.00019178,2]
[346397132,1734940240656,-500.0,0.00019178,2]
[346397133,1734940240665,-500.0,0.00019178,2]
[346397134,1734940240675,-925.04,0.00019178,2]
[346397135,1734940240684,-500.0,0.00019178,2]
[346397136,1734940240694,-500.0,0.00019178,2]
[346397137,1734940240703,-500.0,0.00019178,2]
[346397138,1734940240714,-500.0,0.00019178,2]
[346397139,1734940240723,-500.0,0.00019178,2]
[346397140,1734940240733,-326.39550571,0.00019178,2]
[346397141,1734940240743,-500.0,0.00019178,2]
[346397142,1734940240752,-500.0,0.00019178,2]
[346397143,1734940240763,-534.88,0.00019178,2]
[346397144,1734940240772,-500.0,0.00019178,2]
[346397145,1734940240782,-800.81,0.00019178,2]
[346397146,1734940240791,-500.0,0.00019178,2]
[346397147,1734940240801,-500.0,0.00019178,2]
[346397148,1734940240811,-675.77,0.00019178,2]
[346397149,1734940240821,-505.27738219,0.00019178,2]
[346397150,1734940240830,-775.84,0.00019178,2]
[346397152,1734940240839,-500.0,0.00019178,2]
[346397154,1734940240849,-500.0,0.00019178,2]
[346397156,1734940240859,-500.0,0.00019178,2]
[346397158,1734940240868,-500.0,0.00019178,2]
[346397160,1734940240878,-500.0,0.00019178,2]
[346397162,1734940240887,-500.0,0.00019178,2]
[346397164,1734940240897,-500.0,0.00019178,2]
[346397166,1734940240906,-368.39552558,0.00019178,2]
[346397167,1734940240915,-492.12798804,0.00019178,2]
[346397168,1734940240925,-394.22162209,0.00019178,2]
[346397169,1734940240934,-500.0,0.00019178,2]
[346397170,1734940240943,-500.0,0.00019178,2]
[346397172,1734940240952,-500.0,0.00019178,2]
[346397173,1734940240961,-500.0,0.00019178,2]
[346397174,1734940240970,-500.0,0.00019178,2]
[346397175,1734940240980,-500.0,0.00019178,2]
[346397176,1734940240989,-500.0,0.00019178,2]
[346397177,1734940240999,-539.26,0.00019178,2]
[346397178,1734940241008,-500.0,0.00019178,2]
[346397179,1734940241018,-500.0,0.00019178,2]
[346397180,1734940241027,-500.0,0.00019178,2]
[346397181,1734940241036,-500.0,0.00019178,2]
[346397182,1734940241045,-500.0,0.00019178,2]
[346397183,1734940241054,-688.87,0.00019178,2]
[346397184,1734940241063,-500.0,0.00019178,2]
[346397185,1734940241072,-500.0,0.00019178,2]
[346397186,1734940241081,-502.2015154,0.00019178,2]
[346397187,1734940241090,-500.0,0.00019178,2]
[346397188,1734940241100,-500.0,0.00019178,2]
[346397189,1734940241109,-500.0,0.00019178,2]
[346397190,1734940241118,-500.0,0.00019178,2]
[346397192,1734940241127,-500.0,0.00019178,2]
[346397193,1734940241136,-500.0,0.00019178,2]
[346397194,1734940241146,-500.0,0.00019178,2]
[346397196,1734940241155,-500.0,0.00019178,2]
[346397198,1734940241164,-154.477768,0.00019178,2]
[346397200,1734940241173,-1492.191648,0.00019178,2]
[346397202,1734940241182,-500.0,0.00019178,2]
[346397204,1734940241192,-500.0,0.00019178,2]
[346397206,1734940241201,-500.0,0.00019178,2]
[346397208,1734940241211,-500.0,0.00019178,2]
[346397210,1734940241220,-1207.441262,0.00019178,2]
[346397212,1734940241229,-507.96147048,0.00019178,2]
[346397214,1734940241238,-500.0,0.00019178,2]
[346397216,1734940241248,-1014.37,0.00019178,2]
[346397218,1734940241257,-500.0,0.00019178,2]
[346397220,1734940241268,-500.0,0.00019178,2]
[346397222,1734940241277,-500.0,0.00019178,2]
[346397224,1734940241287,-500.0,0.00019178,2]
[346397226,1734940241296,-500.0,0.00019178,2]
[346397228,1734940241305,-500.0,0.00019178,2]
[346397230,1734940241314,-500.0,0.00019178,2]
[346397232,1734940241324,-508.80129322,0.00019178,2]
[346397234,1734940241333,-504.07609417,0.00019178,2]
[346397236,1734940241347,-956.1,0.00019178,2]
[346397238,1734940241356,-979.56,0.00019178,2]
[346397240,1734940241366,-500.0,0.00019178,2]
[346397242,1734940241375,-500.0,0.00019178,2]
[346397244,1734940241386,-500.0,0.00019178,2]
[346397246,1734940241396,-500.0,0.00019178,2]
[346397248,1734940241405,-500.0,0.00019178,2]
[346397250,1734940241416,-500.0,0.00019178,2]
[346397252,1734940241426,-500.0,0.00019178,2]
[346397254,1734940241435,-500.0,0.00019178,2]
[346397256,1734940241444,-700.61,0.00019178,2]
[346397258,1734940241453,-500.0,0.00019178,2]
[346397260,1734940241463,-500.0,0.00019178,2]
[346397262,1734940241472,-656.35,0.00019178,2]
[346397264,1734940241481,-500.0,0.00019178,2]
[346397266,1734940241491,-500.0,0.00019178,2]
[346397268,1734940241500,-500.0,0.00019178,2]
[346397270,1734940241513,-500.0,0.00019178,2]
[346397272,1734940241523,-500.0,0.00019178,2]
[346397274,1734940241533,-500.0,0.00019178,2]
[346397276,1734940241542,-500.0,0.00019178,2]
[346397279,1734940241554,-500.0,0.00019178,2]
[346397281,1734940241563,-500.0,0.00019178,2]
[346397283,1734940241572,-500.0,0.00019178,2]
[346397285,1734940241582,-500.0,0.00019178,2]
[346397287,1734940241591,-986.62,0.00019178,2]
[346397288,1734940241602,-500.0,0.00019178,2]
[346397290,1734940241612,-742.71,0.00019178,2]
[346397292,1734940241622,-500.0,0.00019178,2]
[346397295,1734940241632,-500.0,0.00019178,2]
[346397301,1734940241689,-500.0,0.00019178,2]
[346397303,1734940241699,-500.0,0.00019178,2]
[346397305,1734940241710,-500.0,0.00019178,2]
[346397307,1734940241719,-500.0,0.00019178,2]
[346397310,1734940241728,-1036.55,0.00019178,2]
[346397311,1734940241738,-500.0,0.00019178,2]
[346397314,1734940241747,-500.0,0.00019178,2]
[346397315,1734940241757,-598.9,0.00019178,2]
[346397318,1734940241769,-500.0,0.00019178,2]
[346397319,1734940241778,-1241.27,0.00019178,2]
[346397322,1734940241788,-500.0,0.00019178,2]
[346397323,1734940241797,-500.0,0.00019178,2]
[346397326,1734940241807,-500.0,0.00019178,2]
[346397328,1734940241817,-500.0,0.00019178,2]
[346397330,1734940241827,-150.28279906,0.00019178,2]
[346397332,1734940241836,-500.0,0.00019178,2]
[346397334,1734940241846,-500.0,0.00019178,2]
[346397336,1734940241856,-500.0,0.00019178,2]
[346397338,1734940241865,-500.0,0.00019178,2]
[346397340,1734940241875,-500.0,0.00019178,2]
[346397341,1734940241884,-500.0,0.00019178,2]
[346397343,1734940241893,-500.0,0.00019178,2]
[346397345,1734940241903,-500.0,0.00019178,2]
[346397347,1734940241912,-500.0,0.00019178,2]
[346397349,1734940241921,-506.08,0.00019178,2]
[346397351,1734940241931,-500.0,0.00019178,2]
[346397353,1734940241940,-506.11840947,0.00019178,2]
[346397356,1734940241950,-500.0,0.00019178,2]
[346397358,1734940241959,-1041.44,0.00019178,2]
[346397359,1734940241968,-500.0,0.00019178,2]
[346397362,1734940241978,-500.0,0.00019178,2]
[346397364,1734940241988,-500.0,0.00019178,2]
[346397366,1734940241998,-500.0,0.00019178,2]
[346397367,1734940242008,-500.0,0.00019178,2]
[346397369,1734940242021,-457.05275369,0.00019178,2]
[346397371,1734940242030,-500.0,0.00019178,2]
[346397373,1734940242039,-500.0,0.00019178,2]
[346397375,1734940242048,-500.0,0.00019178,2]
[346397377,1734940242058,-500.0,0.00019178,2]
[346397379,1734940242067,-500.0,0.00019178,2]
[346397381,1734940242077,-500.0,0.00019178,2]
[346397383,1734940242086,-500.0,0.00019178,2]
[346397385,1734940242096,-500.0,0.00019178,2]
[346397387,1734940242106,-500.0,0.00019178,2]
[346397389,1734940242115,-500.25866626,0.00019178,2]
[346397391,1734940242124,-507.9,0.00019178,2]
[346397393,1734940242133,-500.0,0.00019178,2]
[346397395,1734940242142,-500.0,0.00019178,2]
[346397397,1734940242152,-500.0,0.00019178,2]
[346397399,1734940242162,-500.0,0.00019178,2]
[346397401,1734940242171,-500.0,0.00019178,2]
[346397403,1734940242180,-500.0,0.00019178,2]
[346397405,1734940242189,-500.0,0.00019178,2]
[346397407,1734940242198,-500.0,0.00019178,2]
[346397409,1734940242207,-500.0,0.00019178,2]
[346397411,1734940242216,-500.0,0.00019178,2]
[346397413,1734940242226,-500.0,0.00019178,2]
[346397415,1734940242234,-500.0,0.00019178,2]
[346397417,1734940242243,-500.0,0.00019178,2]
[346397419,1734940242252,-500.0,0.00019178,2]
[346397421,1734940242263,-500.0,0.00019178,2]
[346397423,1734940242272,-500.0,0.00019178,2]
[346397425,1734940242282,-727.89,0.00019178,2]
[346397427,1734940242291,-500.0,0.00019178,2]
[346397429,1734940242300,-500.0,0.00019178,2]
[346397431,1734940242310,-500.0,0.00019178,2]
[346397433,1734940242319,-1853.57,0.00019178,2]
[346397435,1734940242328,-500.0,0.00019178,2]
[346397437,1734940242339,-503.98355471,0.00019178,2]
[346397439,1734940242348,-500.0,0.00019178,2]
[346397441,1734940242357,-500.0,0.00019178,2]
[346397443,1734940242366,-900.57,0.00019178,2]
[346397445,1734940242375,-503.52071004,0.00019178,2]
[346397447,1734940242384,-17292.04,0.00019178,2]
[346397449,1734940242393,-500.0,0.00019178,2]
[346397451,1734940242402,-500.0,0.00019178,2]
[346397453,1734940242411,-500.0,0.00019178,2]
[346397455,1734940242420,-500.0,0.00019178,2]
[346397457,1734940242429,-1077.2,0.00019178,2]
[346397459,1734940242438,-522.23479402,0.00019178,2]
[346397461,1734940242447,-500.0,0.00019178,2]
[346397462,1734940242456,-500.0,0.00019178,2]
[346397464,1734940242465,-970.31,0.00019178,2]
[346397466,1734940242474,-500.0,0.00019178,2]
[346397468,1734940242484,-500.0,0.00019178,2]
[346397470,1734940242493,-500.0,0.00019178,2]
[346397472,1734940242503,-669.79,0.00019178,2]
[346397474,1734940242513,-1108.65,0.00019178,2]
[346397476,1734940242522,-500.0,0.00019178,2]
[346397478,1734940242531,-736.88,0.00019178,2]
[346397480,1734940242540,-500.0,0.00019178,2]
[346397482,1734940242549,-500.0,0.00019178,2]
[346397484,1734940242558,-503.31100316,0.00019178,2]
[346397486,1734940242567,-511.16122439,0.00019178,2]
[346397488,1734940242576,-786.14,0.00019178,2]
[346397490,1734940242585,-500.0,0.00019178,2]
[346397492,1734940242594,-1699.95,0.00019178,2]
[346397494,1734940242605,-500.0,0.00019178,2]
[346397496,1734940242614,-500.0,0.00019178,2]
[346397498,1734940242623,-9367.55,0.00019178,2]
[346397500,1734940242632,-500.0,0.00019178,2]
[346397502,1734940242642,-500.0,0.00019178,2]
[346397504,1734940242651,-500.0,0.00019178,2]
[346397506,1734940242660,-502.82603967,0.00019178,2]
[346397508,1734940242669,-509.69645487,0.00019178,2]
[346397510,1734940242678,-404.16191653,0.00019178,2]
[346397512,1734940242688,-500.0,0.00019178,2]
[346397514,1734940242697,-1104.51,0.00019178,2]
[346397516,1734940242706,-179.0,0.00019178,2]
[346397518,1734940242715,-500.0,0.00019178,2]
[346397520,1734940242723,-500.0,0.00019178,2]
[346397522,1734940242732,-500.0,0.00019178,2]
[346397524,1734940242742,-1174.4,0.00019178,2]
[346397526,1734940242751,-1820.36,0.00019178,2]
[346397528,1734940242760,-500.0,0.00019178,2]
[346397530,1734940242771,-500.0,0.00019178,2]
[346397532,1734940242780,-945.65,0.00019178,2]
[346397534,1734940242790,-500.0,0.00019178,2]
[346397536,1734940242799,-1917.83,0.00019178,2]
[346397538,1734940242808,-508.11282398,0.00019178,2]
[346397540,1734940242817,-1349.28,0.00019178,2]
[346397542,1734940242826,-500.0,0.00019178,2]
[346397544,1734940242836,-3977.3,0.00019178,2]
[346397546,1734940242845,-500.0,0.00019178,2]
[346397548,1734940242854,-500.0,0.00019178,2]
[346397550,1734940242862,-500.0,0.00019178,2]
[346397552,1734940242871,-538.80131202,0.00019178,2]
[346397554,1734940242880,-500.0,0.00019178,2]
[346397556,1734940242889,-500.0,0.00019178,2]
[346397558,1734940242898,-500.0,0.00019178,2]
[346397559,1734940242906,-500.0,0.00019178,2]
[346397561,1734940242915,-500.0,0.00019178,2]
[346397563,1734940242924,-1221.1,0.00019178,2]
[346397565,1734940242933,-500.0,0.00019178,2]
[346397567,1734940242942,-500.0,0.00019178,2]
[346397569,1734940242951,-500.0,0.00019178,2]
[346397571,1734940242960,-500.0,0.00019178,2]
[346397573,1734940242969,-500.0,0.00019178,2]
[346397575,1734940242979,-500.0,0.00019178,2]
[346397577,1734940242989,-500.0,0.00019178,2]
[346397579,1734940242998,-500.0,0.00019178,2]
[346397581,1734940243007,-849.57,0.00019178,2]
[346397583,1734940243018,-500.0,0.00019178,2]
[346397585,1734940243027,-500.0,0.00019178,2]
[346397587,1734940243036,-514.06006106,0.00019178,2]
[346397589,1734940243045,-500.0,0.00019178,2]
[346397591,1734940243055,-500.0,0.00019178,2]
[346397593,1734940243064,-646.09660577,0.00019178,2]
[346397595,1734940243073,-190.4421644,0.00019178,2]
[346397597,1734940243082,-500.0,0.00019178,2]
[346397599,1734940243091,-500.0,0.00019178,2]
[346397601,1734940243100,-566.61162718,0.00019178,2]
[346397603,1734940243110,-500.0,0.00019178,2]
[346397605,1734940243119,-507.36659466,0.00019178,2]
[346397607,1734940243128,-500.0,0.00019178,2]
[346397609,1734940243138,-1298.38,0.00019178,2]
[346397611,1734940243147,-500.0,0.00019178,2]
[346397613,1734940243156,-500.0,0.00019178,2]
[346397615,1734940243165,-500.0,0.00019178,2]
[346397617,1734940243174,-4147.11,0.00019178,2]
[346397619,1734940243184,-500.0,0.00019178,2]
[346397621,1734940243193,-796.41,0.00019178,2]
[346397623,1734940243202,-500.0,0.00019178,2]
[346397625,1734940243211,-470.66451981,0.00019178,2]
[346397627,1734940243221,-1300.2,0.00019178,2]
[346397629,1734940243231,-500.0,0.00019178,2]
[346397631,1734940243240,-500.0,0.00019178,2]
[346397633,1734940243250,-862.14,0.00019178,2]
[346397635,1734940243259,-500.0,0.00019178,2]
[346397638,1734940243270,-1051.07,0.00019178,2]
[346397641,1734940243280,-500.0,0.00019178,2]
[346397643,1734940243289,-502.48828232,0.00019178,2]
[346397645,1734940243298,-911.18,0.00019178,2]
[346397647,1734940243308,-842.27,0.00019178,2]
[346397649,1734940243318,-683.41,0.00019178,2]
[346397651,1734940243327,-500.0,0.00019178,2]
[346397653,1734940243340,-500.0,0.00019178,2]
[346397655,1734940243350,-500.0,0.00019178,2]
[346397658,1734940243360,-500.0,0.00019178,2]
[346397660,1734940243370,-500.0,0.00019178,2]
[346397662,1734940243379,-503.37527568,0.00019178,2]
[346397664,1734940243389,-507.06119925,0.00019178,2]
[346397667,1734940243399,-1931.51,0.00019178,2]
[346397668,1734940243409,-500.0,0.00019178,2]
[346397671,1734940243419,-500.0,0.00019178,2]
[346397673,1734940243428,-500.0,0.00019178,2]
[346397675,1734940243438,-502.29206007,0.00019178,2]
[346397677,1734940243447,-500.0,0.00019178,2]
[346397679,1734940243457,-500.0,0.00019178,2]
[346397681,1734940243466,-500.0,0.00019178,2]
[346397683,1734940243476,-500.0,0.00019178,2]
[346397685,1734940243485,-521.83,0.00019178,2]
[346397687,1734940243494,-500.0,0.00019178,2]
[346397689,1734940243504,-500.0,0.00019178,2]
[346397691,1734940243514,-1841.22,0.00019178,2]
[346397693,1734940243524,-898.31,0.00019178,2]
[346397695,1734940243535,-498.91113425,0.00019178,2]
[346397697,1734940243544,-2051.97,0.00019178,2]
[346397699,1734940243553,-500.0,0.00019178,2]
[346397701,1734940243563,-640.87,0.00019178,2]
[346397703,1734940243572,-500.0,0.00019178,2]
[346397705,1734940243582,-727.99,0.00019178,2]
[346397707,1734940243591,-500.0,0.00019178,2]
[346397709,1734940243601,-500.0,0.00019178,2]
[346397711,1734940243610,-1426.15,0.00019178,2]
[346397713,1734940243619,-1358.09,0.00019178,2]
[346397715,1734940243628,-500.0,0.00019178,2]
[346397717,1734940243638,-500.0,0.00019178,2]
[346397719,1734940243648,-2805.36,0.00019178,2]
[346397721,1734940243658,-202.24680898,0.00019178,2]
[346397723,1734940243667,-500.0,0.00019178,2]
[346397725,1734940243677,-500.0,0.00019178,2]
[346397727,1734940243686,-500.0,0.00019178,2]
[346397729,1734940243695,-1309.66,0.00019178,2]
[346397731,1734940243704,-500.0,0.00019178,2]
[346397733,1734940243714,-500.0,0.00019178,2]
[346397735,1734940243723,-500.0,0.00019178,2]
[346397737,1734940243733,-1296.75,0.00019178,2]
[346397739,1734940243743,-500.0,0.00019178,2]
[346397741,1734940243753,-9921.71,0.00019178,2]
[346397743,1734940243764,-559.2716724,0.00019178,2]
[346397745,1734940243773,-995.79,0.00019178,2]
[346397747,1734940243783,-500.0,0.00019178,2]
[346397749,1734940243792,-500.0,0.00019178,2]
[346397751,1734940243802,-500.0,0.00019178,2]
[346397753,1734940243811,-1106.64,0.00019178,2]
[346397756,1734940243821,-991.88,0.00019178,2]
[346397758,1734940243830,-500.0,0.00019178,2]
[346397759,1734940243839,-500.0,0.00019178,2]
[346397762,1734940243849,-581.03239493,0.00019178,2]
[346397764,1734940243859,-1025.59,0.00019178,2]
[346397766,1734940243868,-2224.42,0.00019178,2]
[346397767,1734940243877,-2036.24,0.00019178,2]
[346397770,1734940243887,-500.0,0.00019178,2]
[346397772,1734940243898,-12977.05,0.00019178,2]
[346397774,1734940243907,-508.72822675,0.00019178,2]
[346397776,1734940243916,-806.27,0.00019178,2]
[346397778,1734940243927,-502.19241179,0.00019178,2]